bitfinex/quotes_SOLUSD_20240605
["timestamp","ask_amount","ask_price","bid_price","bid_amount"]
[1717563661265,22.5333,173.44,173.36,122.1342]
[1717563662133,20.4,173.44,173.36,120.0]
[1717563662341,0.4,173.44,173.38,120.0]
[1717563662553,0.4,173.44,173.4,2.1337]
[1717563663161,0.4,173.44,173.39,2.1338]
[1717563663338,0.4,173.44,173.35,8.60403793]
[1717563663339,23.7137,173.41,173.35,8.60403793]
[1717563663658,23.7137,173.41,173.34,380.3]
[1717563663839,21.58,173.38,173.34,380.3]
[1717563664245,20.0,173.37,173.29,17.35403793]
[1717563664456,20.0,173.37,173.27,391.03933793]
[1717563664867,22.1341,173.37,173.27,388.90403793]
[1717563665041,2.1343,173.36,173.27,380.3]
[1717563665237,21.58,173.35,173.27,380.3]
[1717563665561,20.0,173.34,173.27,380.3]
[1717563666143,148.09296917,173.43,173.27,380.3]
[1717563666374,21.58,173.39,173.27,380.3]
[1717563666540,21.58,173.39,173.28,8.60403793]
[1717563666876,20.0,173.38,173.3,2.1349]
[1717563667942,20.0,173.38,173.31,2.1348]
[1717563668272,20.0,173.38,173.29,2.475]
[1717563668579,20.0,173.38,173.31,2.1348]
[1717563668788,41.58,173.4,173.32,0.17]
[1717563668965,41.58,173.4,173.3,8.6054454]
[1717563669166,41.58,173.4,173.31,0.34]
[1717563669352,41.58,173.4,173.31,8.9454454]
[1717563669675,41.58,173.4,173.31,8.94203284]
[1717563669848,41.58,173.4,173.33,120.0]
[1717563670372,21.58,173.43,173.35,122.1344]
[1717563670547,21.58,173.43,173.36,2.1342]
[1717563670861,2.5333,173.44,173.37,122.1341]
[1717563670862,0.4,173.44,173.37,122.1341]
[1717563671970,0.4,173.44,173.39,120.0]
[1717563672782,0.4,173.44,173.38,2.1339]
[1717563674077,0.4,173.44,173.37,120.34]
[1717563674078,0.4,173.44,173.39,2.1339]
[1717563674586,0.4,173.44,173.39,128.2384]
[1717563676582,0.4,173.44,173.39,8.2384]
[1717563678189,0.4,173.44,173.35,126.1541]
[1717563678481,21.58,173.42,173.36,2.1341]
[1717563678662,23.7136,173.42,173.34,2.1344]
[1717563678853,21.58,173.42,173.34,2.1344]
[1717563679057,23.7135,173.42,173.34,2.1344]
[1717563679676,23.7135,173.42,173.35,2.1343]
[1717563679884,22.1337,173.41,173.33,382.4345]
[1717563680254,2.1338,173.4,173.33,382.4345]
[1717563680880,21.58,173.39,173.33,382.4345]
[1717563681082,21.58,173.39,173.31,10.73683284]
[1717563681380,22.134,173.38,173.31,10.73683284]
[1717563681682,2.1341,173.37,173.29,10.73703284]
[1717563681855,23.7143,173.36,173.29,10.73703284]
[1717563682051,20.0,173.35,173.28,2.1352]
[1717563682292,21.58,173.33,173.27,2.1353]
[1717563682595,20.0,173.32,173.26,2.1354]
[1717563682757,20.0,173.32,173.27,2.1353]
[1717563682967,20.0,173.32,173.28,2.1351]
[1717563683374,26.1663,173.32,173.27,2.1353]
[1717563683796,26.1663,173.32,173.28,2.1352]
[1717563684177,6.0839,173.31,173.25,10.73763284]
[1717563684509,6.0839,173.29,173.23,8.60203284]
[1717563684702,20.0,173.32,173.25,2.1356]
[1717563684908,20.0,173.32,173.23,128.60203284]
[1717563685404,20.0,173.32,173.28,2.1352]
[1717563686608,20.0,173.32,173.27,2.1353]
[1717563686908,20.0,173.32,173.28,2.1352]
[1717563687696,4.268,173.39,173.24,8.60203284]
[1717563687697,2.1342,173.37,173.29,2.135]
[1717563687998,2.1342,173.37,173.3,2.135]
[1717563687999,21.58,173.36,173.3,2.135]
[1717563688218,20.0,173.35,173.24,124.2714]
[1717563688522,2.1345,173.34,173.27,2.1353]
[1717563689798,21.58,173.33,173.27,2.1353]
[1717563690419,21.58,173.33,173.28,2.1352]
[1717563691532,20.0,173.35,173.3,2.1349]
[1717563692006,20.0,173.35,173.31,2.1348]
[1717563692193,20.0,173.35,173.3,2.1349]
[1717563692717,20.0,173.35,173.31,2.1348]
[1717563693319,22.1344,173.35,173.29,2.1351]
[1717563693495,20.0,173.35,173.3,2.135]
[1717563694821,20.0,173.35,173.31,2.1348]
[1717563696488,20.0,173.35,173.3,2.1349]
[1717563696816,20.0,173.35,173.29,2.135]
[1717563697500,8.2965,173.34,173.29,2.135]
[1717563697810,49.8766,173.33,173.27,2.1353]
[1717563698200,6.162,173.32,173.27,2.1353]
[1717563698922,6.162,173.32,173.28,2.1352]
[1717563700821,6.162,173.32,173.29,2.1351]
[1717563701197,6.162,173.32,173.28,2.1352]
[1717563701742,6.162,173.32,173.29,2.1351]
[1717563702520,6.162,173.32,173.27,2.1353]
[1717563703111,6.162,173.32,173.28,2.1352]
[1717563703623,6.162,173.32,173.27,2.1353]
[1717563703808,6.162,173.32,173.25,384.5711]
[1717563704207,20.0,173.31,173.26,2.1354]
[1717563704410,6.3603,173.3,173.27,2.1353]
[1717563705820,7.2,173.28,173.27,2.1353]
[1717563706523,7.2,173.28,173.25,380.3]
[1717563706733,7.2,173.26,173.25,380.3]
[1717563706895,20.6856,173.26,173.25,380.3]
[1717563707332,42.8211,173.26,173.25,380.3]
[1717563707510,40.6856,173.26,173.25,380.3]
[1717563710036,26.2856,173.26,173.25,380.3]
[1717563710401,20.0,173.26,173.25,380.3]
[1717563713415,28.2168,173.26,173.25,380.3]
[1717563714827,43.5434,173.26,173.25,380.3]
[1717563716237,28.2168,173.26,173.21,2.5361]
[1717563716446,20.0,173.25,173.21,2.5361]
[1717563716943,20.0,173.25,173.22,2.1359]
[1717563717112,20.0,173.25,173.21,2.536]
[1717563717312,28.4992,173.26,173.21,2.536]
[1717563718240,21.61,173.27,173.23,2.1358]
[1717563718412,21.61,173.27,173.22,4.2719]
[1717563718618,21.61,173.27,173.23,2.1358]
[1717563719208,21.61,173.27,173.24,2.1357]
[1717563719721,21.61,173.27,173.23,2.1358]
[1717563721040,6.2734,173.26,173.21,0.4]
[1717563721239,8.4093,173.23,173.21,0.4]
[1717563721957,6.2734,173.23,173.21,0.4]
[1717563722167,8.4093,173.23,173.21,0.4]
[1717563722362,20.0,173.22,173.21,0.4]
[1717563728055,22.136,173.22,173.21,0.4]
[1717563728456,47.8443,173.22,173.21,0.4]
[1717563728648,64.5328,173.22,173.21,0.4]
[1717563728961,2.1366,173.17,173.12,2.1371]
[1717563729145,21.61,173.18,173.12,2.1371]
[1717563729459,22.1366,173.17,173.12,2.1371]
[1717563729634,20.0,173.17,173.12,2.1371]
[1717563729832,20.0,173.17,173.13,2.137]
[1717563729833,7.21,173.16,173.13,2.137]
[1717563730054,7.21,173.14,173.13,2.137]
[1717563730248,27.21,173.14,173.11,0.4]
[1717563730458,28.84,173.16,173.11,0.4]
[1717563730459,7.21,173.12,173.11,0.4]
[1717563731273,22.1366,173.17,173.11,2.5373]
[1717563731575,7.21,173.12,173.11,2.5373]
[1717563731747,7.21,173.12,173.11,0.4]
[1717563732071,7.21,173.12,173.11,2.5373]
[1717563733033,7.21,173.12,173.11,0.4]
[1717563733546,7.21,173.12,173.11,2.5373]
[1717563734862,20.0,173.17,173.11,0.4]
[1717563735065,4.2724,173.21,173.12,4.2744]
[1717563735066,2.1363,173.2,173.12,4.2744]
[1717563735367,20.0,173.2,173.15,2.1367]
[1717563735566,2.1362,173.2,173.11,128.9493]
[1717563735743,2.1361,173.21,173.15,2.1368]
[1717563735938,7.21,173.16,173.15,2.1368]
[1717563736134,7.21,173.16,173.11,4.6745]
[1717563736335,7.21,173.12,173.11,2.5372]
[1717563736567,30.9767,173.16,173.11,2.5373]
[1717563736766,7.21,173.12,173.11,0.4]
[1717563737144,7.21,173.12,173.11,2.5373]
[1717563737342,7.21,173.12,173.11,0.4]
[1717563739951,21.65,173.12,173.11,0.4]
[1717563741947,21.65,173.15,173.11,0.4]
[1717563742264,20.0,173.14,173.11,0.4]
[1717563744073,28.2804,173.14,173.11,0.4]
[1717563745745,26.1434,173.14,173.11,0.4]
[1717563746561,20.0,173.14,173.11,0.4]
[1717563746953,20.0,173.14,173.11,2.5373]
[1717563748037,20.0,173.14,173.11,0.4]
[1717563748455,22.137,173.14,173.11,0.4]
[1717563749047,28.589,173.14,173.11,0.4]
[1717563749642,8.168,173.13,173.11,0.4]
[1717563750048,2.1372,173.12,173.11,0.4]
[1717563750248,20.0,173.12,173.11,0.4]
[1717563750952,41.65,173.12,173.11,0.4]
[1717563754577,43.7872,173.12,173.11,0.4]
[1717563755550,43.9572,173.12,173.11,0.4]
[1717563756153,44.1272,173.12,173.11,0.4]
[1717563756551,54.7176,173.12,173.11,0.4]
[1717563756755,48.306,173.12,173.03,0.8111912]
[1717563756956,21.65,173.06,173.03,0.8111912]
[1717563757164,20.0,173.05,173.03,0.8111912]
[1717563759868,22.1381,173.05,173.03,0.8111912]
[1717563760184,2.1382,173.04,173.03,0.8111912]
[1717563760385,2.4782,173.04,173.03,0.8111912]
[1717563761194,0.34,173.04,173.03,0.8111912]
[1717563762285,2.4782,173.04,173.03,0.8111912]
[1717563762670,6.7546,173.04,173.03,0.8111912]
[1717563762869,8.8003,173.04,173.03,0.8111912]
[1717563763086,28.8003,173.04,173.03,0.8111912]
[1717563764874,22.4782,173.04,173.03,0.8111912]
[1717563765587,41.7222,173.04,173.03,0.8111912]
[1717563765989,2.1384,173.02,173.01,0.4]
[1717563766298,9.3584,173.02,173.01,0.4]
[1717563766482,29.3584,173.02,173.01,0.4]
[1717563767996,38.717,173.02,172.94,2.1393]
[1717563768174,7.22,172.95,172.94,2.1393]
[1717563770374,7.22,172.95,172.93,37.63558816]
[1717563770573,7.22,172.94,172.93,37.63558816]
[1717563770793,7.22,172.94,172.93,35.49608816]
[1717563772497,27.22,172.94,172.93,35.49608816]
[1717563774195,27.22,172.94,172.91,0.4]
[1717563774508,7.22,172.92,172.91,0.4]
[1717563775369,7.22,172.92,172.91,2.5398]
[1717563775571,2.1401,172.89,172.86,0.8111912]
[1717563775782,7.22,172.87,172.86,0.8111912]
[1717563776307,27.22,172.87,172.86,0.8111912]
[1717563776872,7.22,172.87,172.86,0.8111912]
[1717563777281,27.22,172.87,172.86,0.8111912]
[1717563777702,20.0,172.87,172.86,0.8111912]
[1717563778002,27.22,172.87,172.86,0.8111912]
[1717563779097,29.3603,172.87,172.86,0.8111912]
[1717563780400,22.1403,172.87,172.86,0.8111912]
[1717563780577,2.1405,172.86,172.81,0.4]
[1717563780791,7.22,172.82,172.81,0.4]
[1717563781293,27.22,172.82,172.81,0.4]
[1717563781495,20.0,172.82,172.81,0.4]
[1717563781679,27.22,172.82,172.81,0.4]
[1717563781881,20.0,172.82,172.81,0.4]
[1717563782302,22.1409,172.82,172.81,0.4]
[1717563782607,20.0,172.82,172.81,0.4]
[1717563783887,2.1402,172.88,172.81,0.4]
[1717563784390,2.1403,172.87,172.81,0.4]
[1717563784574,2.1402,172.88,172.81,0.4]
[1717563784775,2.1403,172.87,172.81,0.4]
[1717563785182,2.1402,172.88,172.81,2.541]
[1717563785385,2.1403,172.87,172.81,0.4]
[1717563786003,2.1402,172.88,172.81,2.141]
[1717563786391,22.1401,172.89,172.8,4.2823]
[1717563786596,22.1401,172.89,172.83,2.1408]
[1717563787111,2.1402,172.88,172.82,2.1408]
[1717563787699,2.1404,172.86,172.8,2.1411]
[1717563788276,0.34,172.87,172.81,2.141]
[1717563788607,2.1405,172.86,172.81,2.141]
[1717563788813,2.3105,172.86,172.81,2.141]
[1717563789105,0.17,172.86,172.81,2.141]
[1717563789477,0.34,172.86,172.81,2.141]
[1717563789678,8.4945,172.86,172.78,4.2827]
[1717563789915,22.1405,172.85,172.79,2.1412]
[1717563790386,2.1405,172.85,172.79,2.1412]
[1717563790583,22.3105,172.86,172.8,2.1411]
[1717563790795,20.0,172.86,172.78,6.4243]
[1717563790985,20.0,172.86,172.82,2.1409]
[1717563791843,20.0,172.86,172.82,2.1408]
[1717563792118,22.1402,172.88,172.82,2.1409]
[1717563792285,2.1403,172.87,172.81,2.141]
[1717563792481,2.1404,172.86,172.8,2.1411]
[1717563792879,2.1406,172.85,172.79,2.1412]
[1717563793107,2.4803,172.87,172.78,10.7072]
[1717563793286,2.4803,172.87,172.81,2.141]
[1717563793815,2.4803,172.87,172.82,2.1409]
[1717563793987,2.4803,172.87,172.81,2.141]
[1717563794184,2.4803,172.87,172.82,2.1409]
[1717563794387,2.3103,172.87,172.82,2.1409]
[1717563794781,28.7909,172.88,172.83,2.1408]
[1717563794987,28.7909,172.88,172.82,2.1408]
[1717563795608,2.1403,172.87,172.82,2.1408]
[1717563796132,2.1404,172.86,172.8,2.1411]
[1717563797007,2.1404,172.86,172.81,2.141]
[1717563797198,2.1404,172.86,172.78,10.707]
[1717563797402,2.1404,172.86,172.8,2.1411]
[1717563797630,2.1403,172.87,172.79,4.2825]
[1717563797801,2.3103,172.87,172.81,2.141]
[1717563797997,2.3103,172.87,172.82,2.1409]
[1717563798202,0.17,172.87,172.82,2.1409]
[1717563798402,28.9609,172.88,172.82,2.1409]
[1717563798825,28.9609,172.88,172.83,2.1408]
[1717563799004,26.6507,172.88,172.81,4.2821]
[1717563799208,26.6507,172.88,172.83,2.1407]
[1717563800210,20.0,172.88,172.84,2.1406]
[1717563800426,22.14,172.9,172.85,2.1405]
[1717563800736,22.14,172.9,172.82,4.2817]
[1717563800911,20.0,172.9,172.8,12.8465]
[1717563801114,2.1402,172.88,172.83,2.1407]
[1717563801635,2.1402,172.88,172.82,2.1408]
[1717563801933,7.24,172.85,172.82,2.1408]
[1717563802146,7.24,172.85,172.83,2.1408]
[1717563802311,7.24,172.86,172.84,2.1407]
[1717563802504,20.0,172.85,172.84,2.1407]
[1717563803015,8.683,172.92,172.86,2.1403]
[1717563803334,20.0,172.91,172.88,2.1401]
[1717563803551,7.24,172.89,172.87,2.1402]
[1717563803839,27.24,172.88,172.84,14.9845]
[1717563804008,20.0,172.88,172.87,2.1403]
[1717563804213,20.0,172.88,172.86,2.1403]
[1717563804520,27.24,172.88,172.86,2.1403]
[1717563805238,27.24,172.88,172.83,6.4224]
[1717563805408,27.24,172.88,172.85,2.1405]
[1717563805409,7.24,172.87,172.85,2.1405]
[1717563805741,7.24,172.86,172.85,2.1405]
[1717563806031,20.0,172.88,172.86,2.1404]
[1717563806235,7.24,172.87,172.86,2.1404]
[1717563807905,22.1398,172.91,172.86,2.1404]
[1717563808105,8.4831,172.92,172.86,2.1404]
[1717563808307,7.24,172.87,172.82,4.2817]
[1717563808527,6.3434,172.89,172.84,2.1406]
[1717563808732,20.0,172.88,172.84,2.1406]
[1717563808932,7.24,172.86,172.84,2.1406]
[1717563809121,20.0,172.88,172.85,2.1405]
[1717563809434,7.24,172.87,172.85,2.1405]
[1717563809843,20.0,172.86,172.84,2.1406]
[1717563810141,20.0,172.86,172.85,2.1405]
[1717563810677,20.0,172.86,172.84,2.1406]
[1717563811925,20.0,172.86,172.85,2.1405]
[1717563812455,7.24,172.89,172.86,2.1403]
[1717563812761,7.24,172.89,172.87,2.1403]
[1717563812762,20.0,172.88,172.87,2.1403]
[1717563815927,20.0,172.88,172.86,2.1404]
[1717563816131,20.0,172.88,172.85,2.1405]
[1717563816327,7.24,172.87,172.85,2.1405]
[1717563816948,7.24,172.87,172.86,2.1404]
[1717563817151,26.0781,172.92,172.87,2.1402]
[1717563817152,28.2178,172.92,172.87,2.1402]
[1717563817327,7.24,172.89,172.87,2.1402]
[1717563817527,20.0,172.88,172.87,2.1402]
[1717563818838,20.0,172.88,172.86,2.1403]
[1717563819236,27.24,172.88,172.86,2.1403]
[1717563819536,7.24,172.87,172.85,2.1405]
[1717563819738,7.24,172.86,172.85,2.1405]
[1717563820353,7.24,172.87,172.86,2.1404]
[1717563820958,7.24,172.87,172.84,4.2813]
[1717563820959,20.0,172.88,172.87,2.1403]
[1717563821563,27.24,172.88,172.86,2.1404]
[1717563821745,27.24,172.88,172.87,2.1403]
[1717563822059,20.0,172.88,172.87,2.1403]
[1717563823666,27.24,172.88,172.87,2.1403]
[1717563824346,27.24,172.88,172.86,2.1404]
[1717563824540,7.24,172.87,172.86,2.1404]
[1717563824740,7.24,172.87,172.85,2.1405]
[1717563825166,7.24,172.87,172.84,4.2812]
[1717563825536,7.24,172.87,172.86,2.1404]
[1717563825753,7.24,172.87,172.85,2.1405]
[1717563825952,7.24,172.87,172.86,2.1404]
[1717563831279,20.0,172.88,172.87,2.1403]
[1717563831574,27.24,172.88,172.87,2.1403]
[1717563834580,27.24,172.88,172.83,6.4224]
[1717563834782,7.24,172.85,172.84,6.422]
[1717563836377,20.0,172.88,172.86,2.1404]
[1717563836600,7.24,172.87,172.85,2.1405]
[1717563836919,7.24,172.86,172.85,2.1405]
[1717563837675,27.24,172.86,172.85,2.1405]
[1717563838389,27.24,172.86,172.83,2.1407]
[1717563838589,7.24,172.84,172.83,2.1407]
[1717563838796,27.24,172.84,172.83,2.1407]
[1717563840783,27.24,172.84,172.76,6.3807]
[1717563840784,27.24,172.84,172.82,2.1409]
[1717563841086,27.24,172.83,172.79,4.2825]
[1717563841312,7.24,172.82,172.81,2.1409]
[1717563841819,20.0,172.83,172.82,2.1409]
[1717563841984,27.24,172.83,172.82,2.1409]
[1717563842883,27.24,172.83,172.81,2.141]
[1717563844804,7.24,172.82,172.81,2.141]
[1717563845507,7.24,172.82,172.8,2.1411]
[1717563846506,7.24,172.81,172.8,2.1411]
[1717563847014,27.24,172.81,172.8,2.1411]
[1717563847488,27.24,172.81,172.78,2.1414]
[1717563847679,7.24,172.79,172.78,2.1414]
[1717563850404,7.24,172.8,172.77,4.283]
[1717563850606,27.24,172.81,172.8,2.1412]
[1717563852292,20.0,172.81,172.8,2.1412]
[1717563853915,7.24,172.83,172.81,2.141]
[1717563854100,20.0,172.82,172.81,2.141]
[1717563854299,20.0,172.82,172.8,2.1411]
[1717563854503,27.24,172.82,172.8,2.1411]
[1717563854719,6.5385,172.89,172.84,2.1406]
[1717563854920,7.24,172.87,172.84,2.1406]
[1717563855417,7.24,172.85,172.83,2.1407]
[1717563855605,2.1401,172.89,172.83,2.1407]
[1717563855606,7.24,172.86,172.83,2.1407]
[1717563855913,2.1401,172.89,172.83,2.1407]
[1717563856119,7.24,172.86,172.83,2.1407]
[1717563856406,7.24,172.86,172.84,2.1406]
[1717563857007,20.0,172.85,172.84,2.1406]
[1717563859503,20.0,172.85,172.83,2.1407]
[1717563860909,7.24,172.86,172.83,2.1407]
[1717563861094,20.0,172.85,172.83,2.1407]
[1717563862194,8.3846,172.91,172.86,2.1404]
[1717563862394,8.3846,172.91,172.83,19.2671]
[1717563862395,20.0,172.9,172.87,2.1402]
[1717563862590,2.1396,172.93,172.88,2.1401]
[1717563862911,7.24,172.9,172.88,2.1401]
[1717563863301,2.1396,172.93,172.88,2.1401]
[1717563863499,7.24,172.9,172.88,2.1401]
[1717563863695,7.24,172.9,172.87,2.1402]
[1717563863919,7.24,172.89,172.87,2.1402]
[1717563864217,2.1396,172.93,172.88,2.1402]
[1717563864403,22.1396,172.93,172.88,2.1402]
[1717563864607,7.24,172.9,172.88,2.1402]
[1717563864912,20.0,172.89,172.88,2.1402]
[1717563865111,20.0,172.89,172.87,2.1403]
[1717563865301,7.24,172.9,172.87,2.1403]
[1717563865506,20.0,172.89,172.87,2.1403]
[1717563866026,20.0,172.89,172.86,2.1403]
[1717563866626,20.0,172.89,172.87,2.1403]
[1717563866938,20.0,172.89,172.88,2.1402]
[1717563867845,20.0,172.89,172.87,2.1402]
[1717563868121,2.1397,172.92,172.88,2.1402]
[1717563868327,7.24,172.91,172.88,2.1402]
[1717563868822,20.0,172.9,172.88,2.1402]
[1717563869830,20.0,172.91,172.88,2.1402]
[1717563870329,27.24,172.91,172.88,2.1402]
[1717563870540,20.0,172.91,172.88,2.1402]
[1717563870753,7.24,172.91,172.88,2.1402]
[1717563870940,20.0,172.9,172.88,2.1402]
[1717563871908,7.24,172.92,172.89,2.14]
[1717563872109,20.0,172.91,172.86,4.2808]
[1717563872342,0.4,172.94,172.83,6.4683]
[1717563872542,0.4,172.94,172.93,2.1395]
[1717563873423,0.4,172.94,172.93,12.8373]
[1717563874915,0.4,172.94,172.93,6.4186]
[1717563877619,0.4,172.94,172.93,21.3956]
[1717563877839,0.4,172.94,172.93,34.8653]
[1717563880437,0.4,172.94,172.93,27.6253]
[1717563882226,0.4,172.94,172.93,34.8653]
[1717563882455,0.4,172.94,172.93,170.12184191]
[1717563882614,0.4,172.94,172.93,54.8653]
[1717563883353,0.4,172.94,172.93,55.2053]
[1717563883859,0.4,172.94,172.93,70.6542]
[1717563886141,0.4,172.94,172.93,50.6542]
[1717563888334,0.4,172.94,172.93,70.6542]
[1717563888533,0.4,173.04,173.02,2.1384]
[1717563889028,0.4,173.04,173.03,2.1383]
[1717563889432,0.4,173.04,173.02,2.1384]
[1717563891163,0.4,173.04,173.03,2.1383]
[1717563891459,0.4,173.04,173.02,2.1384]
[1717563891761,0.4,173.04,173.03,2.1383]
[1717563892636,9.7782,173.04,173.0,2.1387]
[1717563892854,27.24,173.03,173.0,2.1387]
[1717563893069,27.24,173.03,173.01,2.1386]
[1717563894054,0.4,173.04,172.99,8.5549]
[1717563894249,0.4,173.04,173.03,2.1383]
[1717563896044,20.4,173.04,173.03,2.1383]
[1717563900673,0.4,173.04,172.98,8.5557]
[1717563900966,2.1385,173.02,172.98,2.1389]
[1717563901140,26.6046,173.03,172.98,2.1389]
[1717563901141,28.743,173.03,172.98,2.1389]
[1717563901350,28.743,173.03,172.97,2.139]
[1717563901351,9.3786,173.01,172.97,2.139]
[1717563901861,20.0,173.0,172.99,2.1388]
[1717563902068,7.0046,173.04,172.96,7.24]
[1717563902243,20.0,173.03,172.98,14.9723]
[1717563902445,20.0,173.03,173.02,2.1384]
[1717563902776,20.0,173.03,173.0,2.1386]
[1717563903067,20.0,173.03,173.01,2.1385]
[1717563903265,20.0,173.03,173.02,2.1384]
[1717563903472,20.0,173.03,172.99,10.694]
[1717563903657,20.0,173.03,173.01,2.1385]
[1717563903972,20.0,173.03,173.02,2.1384]
[1717563904270,0.4,173.04,173.03,2.1383]
[1717563905263,0.4,173.04,173.02,2.1384]
[1717563905663,0.4,173.04,173.03,2.1383]
[1717563905864,0.4,173.04,173.03,12.83]
[1717563906181,0.4,173.04,173.03,28.6234]
[1717563909080,0.4,173.04,173.03,14.9684]
[1717563909561,0.4,173.04,173.03,6.415]
[1717563910780,0.4,173.04,173.03,20.07]
[1717563910963,0.4,173.04,173.03,21.3834]
[1717563912553,0.4,173.04,173.03,28.6234]
[1717563912764,0.4,173.04,173.03,35.0702]
[1717563913176,7.24,173.13,173.12,2.1372]
[1717563913372,0.4,173.14,173.13,2.1371]
[1717563915478,0.4,173.14,173.13,21.371]
[1717563915680,0.4,173.14,173.13,28.611]
[1717563918688,0.4,173.14,173.13,34.9184]
[1717563919184,0.4,173.14,173.13,54.9184]
[1717563919563,0.4,173.14,173.13,55.2584]
[1717563919981,0.4,173.24,173.22,2.1359]
[1717563921076,0.4,173.24,173.21,2.136]
[1717563921294,2.5357,173.24,173.2,2.1362]
[1717563921484,0.4,173.24,173.23,2.1358]
[1717563921654,0.4,173.24,173.2,11.5124]
[1717563921849,0.4,173.24,173.22,2.1359]
[1717563922282,0.4,173.24,173.21,2.136]
[1717563922450,2.1359,173.23,173.18,2.1363]
[1717563922659,7.24,173.19,173.17,2.1365]
[1717563922875,7.24,173.19,173.16,2.1367]
[1717563923094,7.24,173.2,173.16,2.1367]
[1717563923380,7.24,173.2,173.16,2.1366]
[1717563923596,13.3023,173.2,173.16,2.1366]
[1717563924559,13.3023,173.2,173.17,2.1366]
[1717563924882,7.24,173.18,173.15,2.1368]
[1717563925089,7.24,173.18,173.12,13.6515]
[1717563925090,20.0,173.17,173.14,2.1369]
[1717563925293,20.0,173.17,173.15,2.1368]
[1717563925453,20.0,173.17,173.16,2.1367]
[1717563927860,20.0,173.17,173.15,2.1368]
[1717563928189,20.0,173.18,173.15,2.1368]
[1717563930590,20.0,173.18,173.16,2.1367]
[1717563930591,27.24,173.18,173.16,2.1367]
[1717563930758,27.24,173.18,173.15,2.1368]
[1717563932085,7.24,173.17,173.13,2.137]
[1717563932288,20.0,173.16,173.12,2.1371]
[1717563932498,7.24,173.15,173.12,2.1371]
[1717563932660,20.0,173.14,173.11,2.1373]
[1717563932860,27.24,173.14,173.11,2.1373]
[1717563934572,27.24,173.14,173.1,2.1374]
[1717563934885,7.24,173.13,173.1,2.1374]
[1717563935266,7.24,173.13,173.11,2.1373]
[1717563935989,33.4049,173.12,173.05,4.276]
[1717563936301,7.24,173.09,173.07,2.1377]
[1717563937298,7.24,173.08,173.02,6.4154]
[1717563937582,20.0,173.07,173.06,2.1379]
[1717563938185,20.0,173.07,173.05,2.138]
[1717563938877,27.24,173.07,173.05,2.138]
[1717563940867,27.24,173.07,173.06,2.1379]
[1717563941087,27.24,173.07,173.05,2.138]
[1717563941760,20.0,173.07,173.06,2.1379]
[1717563943392,20.0,173.07,173.05,2.138]
[1717563943592,20.0,173.08,173.05,2.138]